[Event "Titled Tuesday Blitz March 08 Early 2022"]
[White "Gabdrakhmanov, Azat"]
[Black "Siva Mahadevan"]
[WhiteFideId "34189197"]
[BlackFideId "25043153"]
[WhiteElo "2279"]
[BlackElo "2203"]
[Result "1/2-1/2"]
[Round "06"]
[TimeControl "180+1"]
[Date "2022.03.08"]
[WhiteClock "0:00:56"]
[BlackClock "0:00:49"]

1. e4 {[%clk 0:03:00]}  c5 {[%clk 0:02:59]} 2. Nf3 {[%clk 0:03:00]}  Nc6 {[%clk 0:02:59]} 3. Nc3 {[%clk 0:03:00]}  d6 {[%clk 0:03:00]} 4. d4 {[%clk 0:03:00]}  cxd4 {[%clk 0:03:00]} 5. Nxd4 {[%clk 0:03:01]}  Nf6 {[%clk 0:03:01]} 6. Bg5 {[%clk 0:03:01]}  e6 {[%clk 0:03:01]} 7. Qd2 {[%clk 0:03:00]}  a6 {[%clk 0:03:01]} 8. O-O-O {[%clk 0:03:00]}  Bd7 {[%clk 0:03:02]} 9. f4 {[%clk 0:03:00]}  b5 {[%clk 0:03:02]} 10. Nxc6 {[%clk 0:03:00]}  Bxc6 {[%clk 0:03:03]} 11. Bd3 {[%clk 0:03:01]}  Be7 {[%clk 0:03:02]} 12. e5 {[%clk 0:03:01]}  dxe5 {[%clk 0:03:02]} 13. fxe5 {[%clk 0:03:02]}  Nd7 {[%clk 0:02:44]} 14. Bxe7 {[%clk 0:03:02]}  Qxe7 {[%clk 0:02:45]} 15. Be4 {[%clk 0:03:02]}  Nxe5 {[%clk 0:02:06]} 16. Qf4 {[%clk 0:02:17]}  Bxe4 {[%clk 0:02:06]} 17. Qxe5 {[%clk 0:02:09]}  Bg6 {[%clk 0:01:55]} 18. Qxg7 {[%clk 0:02:06]}  Qg5+ {[%clk 0:01:54]} 19. Rd2 {[%clk 0:02:05]}  Ke7 {[%clk 0:01:46]} 20. h4 {[%clk 0:01:09]}  Qe3 {[%clk 0:01:42]} 21. Rf1 {[%clk 0:00:58]}  Rhd8 {[%clk 0:00:47]} 22. Qf6+ {[%clk 0:00:56]}  Ke8 {[%clk 0:00:47]} 23. Qh8+ {[%clk 0:00:56]}  Ke7 {[%clk 0:00:48]} 24. Qf6+ {[%clk 0:00:56]}  Ke8 {[%clk 0:00:49]} 25. Qh8+ {[%clk 0:00:56]}  Ke7 {[%clk 0:00:49]} 26. Qf6+ {[%clk 0:00:56]} 1/2-1/2


[Site "https://www.chess.com"]

[Event "Titled Tuesday Blitz March 08 Early 2022"]
[White "Gabrielian, Artur"]
[Black "Paravyan, David"]
[WhiteFideId "4131002"]
[BlackFideId "4194985"]
[WhiteElo "2440"]
[BlackElo "2569"]
[Result "0-1"]
[Round "06"]
[TimeControl "180+1"]
[Date "2022.03.08"]
[WhiteClock "0:00:04"]
[BlackClock "0:00:12"]

1. e4 {[%clk 0:03:00]}  e5 {[%clk 0:02:56]} 2. Nf3 {[%clk 0:03:00]}  Nf6 {[%clk 0:02:56]} 3. Nxe5 {[%clk 0:02:58]}  d6 {[%clk 0:02:57]} 4. Nf3 {[%clk 0:02:58]}  Nxe4 {[%clk 0:02:57]} 5. Nc3 {[%clk 0:02:59]}  Nxc3 {[%clk 0:02:57]} 6. dxc3 {[%clk 0:02:59]}  Be7 {[%clk 0:02:58]} 7. Bf4 {[%clk 0:02:59]}  O-O {[%clk 0:02:57]} 8. Qd2 {[%clk 0:03:00]}  Bg4 {[%clk 0:02:58]} 9. O-O-O {[%clk 0:02:59]}  Nd7 {[%clk 0:02:57]} 10. h4 {[%clk 0:02:58]}  Re8 {[%clk 0:02:56]} 11. Bc4 {[%clk 0:02:54]}  Nf6 {[%clk 0:02:44]} 12. Rde1 {[%clk 0:02:09]}  d5 {[%clk 0:02:41]} 13. Bd3 {[%clk 0:02:08]}  c5 {[%clk 0:02:19]} 14. Ne5 {[%clk 0:02:07]}  Be6 {[%clk 0:02:18]} 15. c4 {[%clk 0:01:22]}  a6 {[%clk 0:01:58]} 16. g4 {[%clk 0:01:16]}  dxc4 {[%clk 0:01:11]} 17. Bxc4 {[%clk 0:00:54]}  Qxd2+ {[%clk 0:01:09]} 18. Bxd2 {[%clk 0:00:53]}  Bxc4 {[%clk 0:01:08]} 19. Nxc4 {[%clk 0:00:53]}  Nxg4 {[%clk 0:01:08]} 20. Nb6 {[%clk 0:00:47]}  Rad8 {[%clk 0:01:06]} 21. Bf4 {[%clk 0:00:23]}  Nxf2 {[%clk 0:00:46]} 22. Rh2 {[%clk 0:00:13]}  c4 {[%clk 0:00:14]} 23. Rxf2 {[%clk 0:00:07]}  Bc5 {[%clk 0:00:14]} 24. Rxe8+ {[%clk 0:00:04]}  Rxe8 {[%clk 0:00:15]} 25. Rd2 {[%clk 0:00:02]}  Re1+ {[%clk 0:00:13]} 26. Rd1 {[%clk 0:00:03]}  Rxd1+ {[%clk 0:00:14]} 27. Kxd1 {[%clk 0:00:03]}  Bxb6 {[%clk 0:00:14]} 28. Ke2 {[%clk 0:00:03]}  h5 {[%clk 0:00:14]} 29. Kf3 {[%clk 0:00:03]}  Bd8 {[%clk 0:00:13]} 30. Bg3 {[%clk 0:00:03]}  Kh7 {[%clk 0:00:14]} 31. Ke4 {[%clk 0:00:03]}  Kg6 {[%clk 0:00:15]} 32. Kd5 {[%clk 0:00:04]}  b5 {[%clk 0:00:14]} 33. Kc6 {[%clk 0:00:04]}  Kf5 {[%clk 0:00:14]} 34. Kb7 {[%clk 0:00:04]}  Kg4 {[%clk 0:00:15]} 35. Bd6 {[%clk 0:00:03]}  f5 {[%clk 0:00:09]} 36. Kxa6 {[%clk 0:00:03]}  f4 {[%clk 0:00:09]} 37. Kxb5 {[%clk 0:00:03]}  f3 {[%clk 0:00:10]} 38. Bc5 {[%clk 0:00:04]}  Bxh4 {[%clk 0:00:11]} 39. a4 {[%clk 0:00:04]}  f2 {[%clk 0:00:11]} 40. Bxf2 {[%clk 0:00:04]}  Bxf2 {[%clk 0:00:12]} 0-1


[Site "https://www.chess.com"]

[Event "Titled Tuesday Blitz March 08 Early 2022"]
[White "Goltsev, Dmitry"]
[Black "Yandarbiev, Ruslan"]
[WhiteFideId "24176710"]
[BlackFideId "4115023"]
[WhiteElo "2273"]
[BlackElo "2102"]
[Result "1/2-1/2"]
[Round "06"]
[TimeControl "180+1"]
[Date "2022.03.09"]
[WhiteClock "0:00:10"]
[BlackClock "0:00:31"]

1. e4 {[%clk 0:02:48]}  c5 {[%clk 0:02:59]} 2. Nf3 {[%clk 0:02:36]}  d6 {[%clk 0:02:59]} 3. d4 {[%clk 0:02:36]}  Nf6 {[%clk 0:03:00]} 4. Nc3 {[%clk 0:02:35]}  cxd4 {[%clk 0:03:01]} 5. Nxd4 {[%clk 0:02:35]}  a6 {[%clk 0:03:02]} 6. Be2 {[%clk 0:02:35]}  e5 {[%clk 0:03:01]} 7. Nb3 {[%clk 0:02:35]}  Be7 {[%clk 0:03:02]} 8. O-O {[%clk 0:02:35]}  O-O {[%clk 0:03:02]} 9. f4 {[%clk 0:02:35]}  b5 {[%clk 0:03:03]} 10. a3 {[%clk 0:02:34]}  Bb7 {[%clk 0:03:02]} 11. Bf3 {[%clk 0:02:30]}  Nbd7 {[%clk 0:03:03]} 12. Be3 {[%clk 0:02:25]}  Rc8 {[%clk 0:03:02]} 13. Qd2 {[%clk 0:02:23]}  Nb6 {[%clk 0:02:58]} 14. Na5 {[%clk 0:02:20]}  Nc4 {[%clk 0:02:56]} 15. Nxc4 {[%clk 0:02:05]}  Rxc4 {[%clk 0:02:57]} 16. Qd3 {[%clk 0:02:01]}  exf4 {[%clk 0:02:47]} 17. Bxf4 {[%clk 0:01:56]}  Qb6+ {[%clk 0:02:47]} 18. Be3 {[%clk 0:01:56]}  Qc7 {[%clk 0:02:47]} 19. Rad1 {[%clk 0:01:54]}  Rc8 {[%clk 0:02:42]} 20. Kh1 {[%clk 0:01:44]}  Nd7 {[%clk 0:02:34]} 21. Bf4 {[%clk 0:01:16]}  Ne5 {[%clk 0:02:31]} 22. Bxe5 {[%clk 0:01:15]}  dxe5 {[%clk 0:02:32]} 23. Qd7 {[%clk 0:01:13]}  Qxd7 {[%clk 0:01:57]} 24. Rxd7 {[%clk 0:01:11]}  R4c7 {[%clk 0:01:57]} 25. Rfd1 {[%clk 0:01:06]}  Kf8 {[%clk 0:01:50]} 26. Bg4 {[%clk 0:01:01]}  Bc6 {[%clk 0:01:17]} 27. R7d2 {[%clk 0:00:52]}  Rb8 {[%clk 0:01:16]} 28. Bd7 {[%clk 0:00:43]}  b4 {[%clk 0:01:05]} 29. axb4 {[%clk 0:00:36]}  Bxb4 {[%clk 0:01:06]} 30. Bxc6 {[%clk 0:00:33]}  Bxc3 {[%clk 0:01:04]} 31. bxc3 {[%clk 0:00:21]}  Rxc6 {[%clk 0:01:04]} 32. Rd3 {[%clk 0:00:22]}  Rbc8 {[%clk 0:01:01]} 33. h3 {[%clk 0:00:15]}  Rxc3 {[%clk 0:01:00]} 34. Rd5 {[%clk 0:00:14]}  Rxc2 {[%clk 0:00:53]} 35. Rxe5 {[%clk 0:00:08]}  Rc1 {[%clk 0:00:50]} 36. Rxc1 {[%clk 0:00:06]}  Rxc1+ {[%clk 0:00:51]} 37. Kh2 {[%clk 0:00:07]}  Ra1 {[%clk 0:00:48]} 38. Rc5 {[%clk 0:00:06]}  a5 {[%clk 0:00:48]} 39. Rc7 {[%clk 0:00:05]}  a4 {[%clk 0:00:47]} 40. Ra7 {[%clk 0:00:05]}  a3 {[%clk 0:00:47]} 41. e5 {[%clk 0:00:05]}  a2 {[%clk 0:00:47]} 42. h4 {[%clk 0:00:05]}  h5 {[%clk 0:00:44]} 43. g3 {[%clk 0:00:03]}  Kg8 {[%clk 0:00:44]} 44. Ra8+ {[%clk 0:00:01]}  Kh7 {[%clk 0:00:44]} 45. Ra6 {[%clk 0:00:02]}  g6 {[%clk 0:00:38]} 46. Ra7 {[%clk 0:00:03]}  Kg8 {[%clk 0:00:37]} 47. Ra8+ {[%clk 0:00:03]}  Kg7 {[%clk 0:00:37]} 48. Ra7 {[%clk 0:00:04]}  Kf8 {[%clk 0:00:38]} 49. Ra8+ {[%clk 0:00:04]}  Ke7 {[%clk 0:00:38]} 50. Ra6 {[%clk 0:00:05]}  Kd7 {[%clk 0:00:35]} 51. Kg2 {[%clk 0:00:05]}  Kc7 {[%clk 0:00:36]} 52. Ra3 {[%clk 0:00:03]}  Kc6 {[%clk 0:00:35]} 53. Ra8 {[%clk 0:00:03]}  Kd5 {[%clk 0:00:35]} 54. Ra5+ {[%clk 0:00:04]}  Kd4 {[%clk 0:00:34]} 55. Kh2 {[%clk 0:00:04]}  Ke3 {[%clk 0:00:32]} 56. Kg2 {[%clk 0:00:04]}  Kd2 {[%clk 0:00:26]} 57. Ra8 {[%clk 0:00:04]}  Kc3 {[%clk 0:00:26]} 58. Ra7 {[%clk 0:00:03]}  Kd4 {[%clk 0:00:21]} 59. Ra5 {[%clk 0:00:03]}  Ke4 {[%clk 0:00:22]} 60. Kh2 {[%clk 0:00:03]}  Kf5 {[%clk 0:00:22]} 61. Kg2 {[%clk 0:00:04]}  g5 {[%clk 0:00:23]} 62. hxg5 {[%clk 0:00:04]}  Kxg5 {[%clk 0:00:21]} 63. e6+ {[%clk 0:00:05]}  Kf6 {[%clk 0:00:22]} 64. exf7 {[%clk 0:00:05]}  Kxf7 {[%clk 0:00:22]} 65. Ra6 {[%clk 0:00:06]}  Ke7 {[%clk 0:00:21]} 66. Kh2 {[%clk 0:00:06]}  Kd7 {[%clk 0:00:22]} 67. Ra7+ {[%clk 0:00:06]}  Kc6 {[%clk 0:00:22]} 68. Ra8 {[%clk 0:00:07]}  Kb6 {[%clk 0:00:22]} 69. Kg2 {[%clk 0:00:06]}  Kb5 {[%clk 0:00:23]} 70. Kh2 {[%clk 0:00:06]}  Kc4 {[%clk 0:00:24]} 71. Kg2 {[%clk 0:00:06]}  Kb3 {[%clk 0:00:25]} 72. Rb8+ {[%clk 0:00:06]}  Kc2 {[%clk 0:00:25]} 73. Rc8+ {[%clk 0:00:07]}  Kd3 {[%clk 0:00:26]} 74. Rd8+ {[%clk 0:00:07]}  Kc3 {[%clk 0:00:26]} 75. Ra8 {[%clk 0:00:07]}  Kd4 {[%clk 0:00:27]} 76. Ra7 {[%clk 0:00:07]}  Kc5 {[%clk 0:00:28]} 77. Ra8 {[%clk 0:00:07]}  Kb4 {[%clk 0:00:29]} 78. Rb8+ {[%clk 0:00:08]}  Kc3 {[%clk 0:00:29]} 79. Rc8+ {[%clk 0:00:08]}  Kb2 {[%clk 0:00:30]} 80. Rb8+ {[%clk 0:00:09]}  Kc2 {[%clk 0:00:30]} 81. Ra8 {[%clk 0:00:09]}  Kb2 {[%clk 0:00:31]} 82. Rb8+ {[%clk 0:00:10]}  Kc2 {[%clk 0:00:31]} 1/2-1/2


[Site "https://www.chess.com"]

[Event "Titled Tuesday Blitz March 08 Early 2022"]
[White "Goltseva, Ekaterina"]
[Black "Samadov, Read"]
[WhiteFideId "24173770"]
[BlackFideId "13417444"]
[WhiteElo "2140"]
[BlackElo "2084"]
[Result "0-1"]
[Round "06"]
[TimeControl "180+1"]
[Date "2022.03.09"]
[WhiteClock "0:00:06"]
[BlackClock "0:00:11"]

1. d4 {[%clk 0:03:00]}  Nf6 {[%clk 0:02:59]} 2. c4 {[%clk 0:03:00]}  e6 {[%clk 0:02:59]} 3. Nc3 {[%clk 0:02:48]}  Bb4 {[%clk 0:02:58]} 4. e3 {[%clk 0:02:43]}  O-O {[%clk 0:02:58]} 5. Bd2 {[%clk 0:02:36]}  d5 {[%clk 0:02:58]} 6. Nf3 {[%clk 0:02:35]}  b6 {[%clk 0:02:57]} 7. cxd5 {[%clk 0:02:35]}  exd5 {[%clk 0:02:54]} 8. Rc1 {[%clk 0:02:35]}  Bb7 {[%clk 0:02:54]} 9. Bd3 {[%clk 0:02:34]}  Be7 {[%clk 0:02:54]} 10. Ne5 {[%clk 0:02:29]}  c5 {[%clk 0:02:52]} 11. f4 {[%clk 0:02:27]}  Nc6 {[%clk 0:02:52]} 12. Ne2 {[%clk 0:02:05]}  Rc8 {[%clk 0:02:46]} 13. Bf5 {[%clk 0:02:02]}  Rc7 {[%clk 0:02:44]} 14. O-O {[%clk 0:02:01]}  g6 {[%clk 0:02:34]} 15. Bb1 {[%clk 0:01:51]}  Ne4 {[%clk 0:02:34]} 16. Bxe4 {[%clk 0:01:38]}  dxe4 {[%clk 0:02:33]} 17. Bc3 {[%clk 0:01:35]}  Nxe5 {[%clk 0:02:27]} 18. fxe5 {[%clk 0:01:16]}  Ba6 {[%clk 0:02:27]} 19. Rf2 {[%clk 0:01:06]}  cxd4 {[%clk 0:02:12]} 20. Nxd4 {[%clk 0:01:00]}  Bg5 {[%clk 0:01:55]} 21. Qe1 {[%clk 0:00:48]}  Bd3 {[%clk 0:01:43]} 22. e6 {[%clk 0:00:35]}  f5 {[%clk 0:01:34]} 23. g3 {[%clk 0:00:28]}  Qd5 {[%clk 0:01:29]} 24. Rf4 {[%clk 0:00:24]}  Rfc8 {[%clk 0:01:25]} 25. h4 {[%clk 0:00:19]}  Bh6 {[%clk 0:01:19]} 26. Qf2 {[%clk 0:00:16]}  b5 {[%clk 0:01:06]} 27. a3 {[%clk 0:00:13]}  Bg7 {[%clk 0:00:52]} 28. h5 {[%clk 0:00:12]}  a5 {[%clk 0:00:43]} 29. Rd1 {[%clk 0:00:12]}  b4 {[%clk 0:00:40]} 30. axb4 {[%clk 0:00:12]}  axb4 {[%clk 0:00:41]} 31. Bxb4 {[%clk 0:00:12]}  Rc1 {[%clk 0:00:34]} 32. Rxc1 {[%clk 0:00:09]}  Rxc1+ {[%clk 0:00:34]} 33. Kh2 {[%clk 0:00:09]}  Bxd4 {[%clk 0:00:34]} 34. exd4 {[%clk 0:00:10]}  e3 {[%clk 0:00:09]} 35. Qf3 {[%clk 0:00:10]}  Be4 {[%clk 0:00:09]} 36. e7 {[%clk 0:00:06]}  Kf7 {[%clk 0:00:08]} 37. Rxe4 {[%clk 0:00:06]}  Qxe4 {[%clk 0:00:08]} 38. hxg6+ {[%clk 0:00:06]}  hxg6 {[%clk 0:00:08]} 39. Qxe4 {[%clk 0:00:04]}  fxe4 {[%clk 0:00:08]} 40. Kg2 {[%clk 0:00:05]}  e2 {[%clk 0:00:08]} 41. Kf2 {[%clk 0:00:05]}  e1=Q+ {[%clk 0:00:08]} 42. Bxe1 {[%clk 0:00:05]}  Kxe7 {[%clk 0:00:08]} 43. Bb4+ {[%clk 0:00:04]}  Ke6 {[%clk 0:00:08]} 44. Ke3 {[%clk 0:00:05]}  Kd5 {[%clk 0:00:09]} 45. Bc3 {[%clk 0:00:05]}  Rg1 {[%clk 0:00:09]} 46. Kf4 {[%clk 0:00:05]}  Rd1 {[%clk 0:00:08]} 47. Kg5 {[%clk 0:00:04]}  e3 {[%clk 0:00:09]} 48. Kxg6 {[%clk 0:00:05]}  e2 {[%clk 0:00:09]} 49. g4 {[%clk 0:00:05]}  e1=Q {[%clk 0:00:10]} 50. Bxe1 {[%clk 0:00:05]}  Rxe1 {[%clk 0:00:10]} 51. g5 {[%clk 0:00:06]}  Ke6 {[%clk 0:00:09]} 52. b4 {[%clk 0:00:04]}  Rd1 {[%clk 0:00:09]} 53. Kg7 {[%clk 0:00:03]}  Rxd4 {[%clk 0:00:09]} 54. g6 {[%clk 0:00:04]}  Kf5 {[%clk 0:00:09]} 55. b5 {[%clk 0:00:03]}  Rd7+ {[%clk 0:00:09]} 56. Kh6 {[%clk 0:00:03]}  Rd6 {[%clk 0:00:09]} 57. b6 {[%clk 0:00:01]}  Rxg6+ {[%clk 0:00:09]} 58. Kh7 {[%clk 0:00:02]}  Rxb6 {[%clk 0:00:09]} 59. Kh8 {[%clk 0:00:02]}  Rg6 {[%clk 0:00:09]} 60. Kh7 {[%clk 0:00:03]}  Kf6 {[%clk 0:00:09]} 61. Kh8 {[%clk 0:00:04]}  Kf7 {[%clk 0:00:10]} 62. Kh7 {[%clk 0:00:05]}  Rf6 {[%clk 0:00:10]} 63. Kh8 {[%clk 0:00:06]}  Rh6# {[%clk 0:00:11]} 0-1


[Site "https://www.chess.com"]

[Event "Titled Tuesday Blitz March 08 Early 2022"]
[White "Gombocz, Ferenc Jr."]
[Black "Arabidze, Meri"]
[WhiteFideId "775029"]
[BlackFideId "13604040"]
[WhiteElo "1913"]
[BlackElo "2335"]
[Result "0-1"]
[Round "06"]
[TimeControl "180+1"]
[Date "2022.03.09"]
[WhiteClock "0:00:23"]
[BlackClock "0:01:03"]

1. c4 {[%clk 0:03:00]}  e5 {[%clk 0:02:59]} 2. g3 {[%clk 0:03:01]}  Nc6 {[%clk 0:02:59]} 3. Bg2 {[%clk 0:03:00]}  g6 {[%clk 0:03:00]} 4. Nc3 {[%clk 0:03:01]}  Bg7 {[%clk 0:03:01]} 5. e4 {[%clk 0:03:01]}  d6 {[%clk 0:02:58]} 6. Nge2 {[%clk 0:02:58]}  h5 {[%clk 0:02:58]} 7. h3 {[%clk 0:02:52]}  h4 {[%clk 0:02:57]} 8. g4 {[%clk 0:02:51]}  f5 {[%clk 0:02:57]} 9. exf5 {[%clk 0:02:49]}  gxf5 {[%clk 0:02:57]} 10. gxf5 {[%clk 0:02:45]}  Bxf5 {[%clk 0:02:57]} 11. d3 {[%clk 0:02:45]}  Nge7 {[%clk 0:02:52]} 12. Bg5 {[%clk 0:02:42]}  Qd7 {[%clk 0:02:51]} 13. Qd2 {[%clk 0:02:36]}  O-O-O {[%clk 0:02:47]} 14. O-O-O {[%clk 0:02:34]}  Rdf8 {[%clk 0:02:45]} 15. f4 {[%clk 0:02:17]}  Ng6 {[%clk 0:02:21]} 16. fxe5 {[%clk 0:02:06]}  Ngxe5 {[%clk 0:02:22]} 17. Be4 {[%clk 0:02:05]}  Nb4 {[%clk 0:02:15]} 18. Nf4 {[%clk 0:01:52]}  Bxe4 {[%clk 0:02:05]} 19. Nxe4 {[%clk 0:01:51]}  Rxf4 {[%clk 0:02:03]} 20. Bxf4 {[%clk 0:01:43]}  Nexd3+ {[%clk 0:02:01]} 21. Kb1 {[%clk 0:01:42]}  Qf5 {[%clk 0:01:49]} 22. Qe3 {[%clk 0:01:21]}  Nxf4 {[%clk 0:01:45]} 23. a3 {[%clk 0:01:11]}  Nc6 {[%clk 0:01:42]} 24. Rhf1 {[%clk 0:01:07]}  Be5 {[%clk 0:01:37]} 25. Ka2 {[%clk 0:01:07]}  Qxh3 {[%clk 0:01:33]} 26. Rf3 {[%clk 0:00:59]}  Qg4 {[%clk 0:01:29]} 27. Rg1 {[%clk 0:00:57]}  Qe6 {[%clk 0:01:25]} 28. Rxf4 {[%clk 0:00:53]}  Bxf4 {[%clk 0:01:23]} 29. Qxf4 {[%clk 0:00:52]}  Qxc4+ {[%clk 0:01:24]} 30. Ka1 {[%clk 0:00:49]}  Qd4 {[%clk 0:01:12]} 31. Qg4+ {[%clk 0:00:42]}  Kb8 {[%clk 0:01:04]} 32. Qxh4 {[%clk 0:00:23]}  Qxg1+ {[%clk 0:01:03]} 0-1


[Site "https://www.chess.com"]

[Event "Titled Tuesday Blitz March 08 Early 2022"]
[White "Gracia Alvarez, Gerardo Antonio"]
[Black "Karolczuk, Iwo"]
[WhiteFideId "5109124"]
[BlackFideId "21816972"]
[WhiteElo "2139"]
[BlackElo "2243"]
[Result "0-1"]
[Round "06"]
[TimeControl "180+1"]
[Date "2022.03.09"]
[WhiteClock "0:00:04"]
[BlackClock "0:00:10"]

1. e4 {[%clk 0:02:56]}  c5 {[%clk 0:02:57]} 2. Nc3 {[%clk 0:02:56]}  Nc6 {[%clk 0:02:55]} 3. Bb5 {[%clk 0:02:54]}  e6 {[%clk 0:02:53]} 4. Bxc6 {[%clk 0:02:53]}  bxc6 {[%clk 0:02:50]} 5. d3 {[%clk 0:02:54]}  d5 {[%clk 0:02:48]} 6. f4 {[%clk 0:02:49]}  Nf6 {[%clk 0:02:42]} 7. e5 {[%clk 0:02:44]}  Nd7 {[%clk 0:02:42]} 8. Nf3 {[%clk 0:02:43]}  Be7 {[%clk 0:02:21]} 9. O-O {[%clk 0:02:43]}  O-O {[%clk 0:02:21]} 10. Qe1 {[%clk 0:02:42]}  a5 {[%clk 0:02:13]} 11. a4 {[%clk 0:02:39]}  Ba6 {[%clk 0:02:11]} 12. b3 {[%clk 0:02:38]}  c4 {[%clk 0:02:10]} 13. bxc4 {[%clk 0:02:38]}  dxc4 {[%clk 0:02:10]} 14. d4 {[%clk 0:02:37]}  Nb6 {[%clk 0:02:05]} 15. Ne4 {[%clk 0:02:26]}  Nd5 {[%clk 0:02:04]} 16. c3 {[%clk 0:02:23]}  Rb8 {[%clk 0:02:01]} 17. Bd2 {[%clk 0:02:03]}  Rb3 {[%clk 0:01:57]} 18. Qg3 {[%clk 0:01:58]}  Kh8 {[%clk 0:01:37]} 19. Kh1 {[%clk 0:01:56]}  Rb2 {[%clk 0:01:27]} 20. Rad1 {[%clk 0:01:49]}  Nb6 {[%clk 0:01:11]} 21. Nfg5 {[%clk 0:01:44]}  h6 {[%clk 0:01:09]} 22. Qh3 {[%clk 0:01:18]}  Kg8 {[%clk 0:01:08]} 23. Nxe6 {[%clk 0:01:00]}  fxe6 {[%clk 0:01:04]} 24. Qxe6+ {[%clk 0:01:00]}  Kh8 {[%clk 0:00:53]} 25. Qg6 {[%clk 0:00:48]}  Qe8 {[%clk 0:00:48]} 26. Qg4 {[%clk 0:00:48]}  Bc8 {[%clk 0:00:41]} 27. f5 {[%clk 0:00:47]}  Qf7 {[%clk 0:00:41]} 28. Ng3 {[%clk 0:00:39]}  Nd5 {[%clk 0:00:34]} 29. Qe4 {[%clk 0:00:26]}  Qg8 {[%clk 0:00:24]} 30. f6 {[%clk 0:00:25]}  gxf6 {[%clk 0:00:22]} 31. Bxh6 {[%clk 0:00:24]}  f5 {[%clk 0:00:21]} 32. Qf3 {[%clk 0:00:19]}  Rf7 {[%clk 0:00:19]} 33. Bc1 {[%clk 0:00:14]}  Ra2 {[%clk 0:00:18]} 34. Nh5 {[%clk 0:00:14]}  Rh7 {[%clk 0:00:17]} 35. Rd2 {[%clk 0:00:09]}  Rxd2 {[%clk 0:00:16]} 36. Bxd2 {[%clk 0:00:10]}  Be6 {[%clk 0:00:15]} 37. Ng3 {[%clk 0:00:08]}  Qg4 {[%clk 0:00:13]} 38. Nxf5 {[%clk 0:00:04]}  Bxf5 {[%clk 0:00:10]} 39. Qxf5 {[%clk 0:00:04]}  Qxf5 {[%clk 0:00:11]} 40. Rxf5 {[%clk 0:00:04]}  Kg8 {[%clk 0:00:10]} 0-1


[Site "https://www.chess.com"]

[Event "Titled Tuesday Blitz March 08 Early 2022"]
[White "Gubanov, Oleg"]
[Black "Manukian, Artak"]
[WhiteFideId "14115115"]
[BlackFideId "13301373"]
[WhiteElo "2080"]
[BlackElo "2503"]
[Result "0-1"]
[Round "06"]
[TimeControl "180+1"]
[Date "2022.03.09"]
[WhiteClock "0:00:01"]
[BlackClock "0:00:08"]

1. e4 {[%clk 0:03:00]}  c6 {[%clk 0:02:59]} 2. d4 {[%clk 0:03:00]}  d5 {[%clk 0:02:59]} 3. e5 {[%clk 0:03:01]}  Bf5 {[%clk 0:02:59]} 4. g4 {[%clk 0:03:01]}  Bd7 {[%clk 0:02:58]} 5. Nc3 {[%clk 0:02:58]}  e6 {[%clk 0:02:56]} 6. Be3 {[%clk 0:02:55]}  c5 {[%clk 0:02:55]} 7. dxc5 {[%clk 0:02:52]}  Nc6 {[%clk 0:02:55]} 8. f4 {[%clk 0:02:47]}  h5 {[%clk 0:02:52]} 9. g5 {[%clk 0:02:39]}  Nge7 {[%clk 0:02:49]} 10. Bh3 {[%clk 0:02:33]}  g6 {[%clk 0:02:46]} 11. Nge2 {[%clk 0:02:30]}  a6 {[%clk 0:02:40]} 12. a3 {[%clk 0:02:18]}  Na5 {[%clk 0:02:34]} 13. b3 {[%clk 0:02:04]}  Rc8 {[%clk 0:02:31]} 14. O-O {[%clk 0:02:03]}  Nf5 {[%clk 0:02:24]} 15. Bxf5 {[%clk 0:02:03]}  gxf5 {[%clk 0:02:25]} 16. b4 {[%clk 0:01:54]}  Nc4 {[%clk 0:02:25]} 17. Bf2 {[%clk 0:01:53]}  h4 {[%clk 0:02:09]} 18. h3 {[%clk 0:01:47]}  Be7 {[%clk 0:02:01]} 19. Qd3 {[%clk 0:01:36]}  Kf8 {[%clk 0:01:37]} 20. Kh2 {[%clk 0:01:35]}  Kg7 {[%clk 0:01:37]} 21. Rg1 {[%clk 0:01:33]}  Kg6 {[%clk 0:01:36]} 22. Nd4 {[%clk 0:01:31]}  b6 {[%clk 0:01:15]} 23. cxb6 {[%clk 0:01:06]}  Nxb6 {[%clk 0:01:14]} 24. Nce2 {[%clk 0:01:02]}  Qc7 {[%clk 0:01:01]} 25. c3 {[%clk 0:00:55]}  Na4 {[%clk 0:00:57]} 26. Nf3 {[%clk 0:00:42]}  Nxc3 {[%clk 0:00:51]} 27. Nxc3 {[%clk 0:00:40]}  Qxc3 {[%clk 0:00:50]} 28. Qxc3 {[%clk 0:00:38]}  Rxc3 {[%clk 0:00:51]} 29. Nxh4+ {[%clk 0:00:35]}  Kg7 {[%clk 0:00:50]} 30. Rg3 {[%clk 0:00:17]}  Rc2 {[%clk 0:00:46]} 31. Rg2 {[%clk 0:00:18]}  Rxf2 {[%clk 0:00:29]} 32. Nxf5+ {[%clk 0:00:18]}  exf5 {[%clk 0:00:27]} 33. Rxf2 {[%clk 0:00:19]}  Rc8 {[%clk 0:00:23]} 34. Rd2 {[%clk 0:00:18]}  Be6 {[%clk 0:00:22]} 35. Raa2 {[%clk 0:00:16]}  Rc4 {[%clk 0:00:21]} 36. Kg3 {[%clk 0:00:15]}  d4 {[%clk 0:00:12]} 37. Rd3 {[%clk 0:00:12]}  Bd8 {[%clk 0:00:11]} 38. Rad2 {[%clk 0:00:10]}  Bb6 {[%clk 0:00:11]} 39. h4 {[%clk 0:00:10]}  Rc3 {[%clk 0:00:08]} 40. h5 {[%clk 0:00:09]}  Bc4 {[%clk 0:00:07]} 41. Rxc3 {[%clk 0:00:07]}  dxc3 {[%clk 0:00:08]} 42. Rc2 {[%clk 0:00:04]}  Bd4 {[%clk 0:00:08]} 43. h6+ {[%clk 0:00:04]}  Kg6 {[%clk 0:00:08]} 44. Kf3 {[%clk 0:00:03]}  Bd3 {[%clk 0:00:08]} 45. Rc1 {[%clk 0:00:01]}  c2 {[%clk 0:00:08]} 46. a4 {[%clk 0:00:01]}  Bb2 {[%clk 0:00:08]} 0-1


[Site "https://www.chess.com"]

[Event "Titled Tuesday Blitz March 08 Early 2022"]
[White "Guseva, Marina"]
[Black "Thomas, Anysia"]
[WhiteFideId "4149351"]
[BlackFideId "670472"]
[WhiteElo "2160"]
[BlackElo "2002"]
[Result "0-1"]
[Round "06"]
[TimeControl "180+1"]
[Date "2022.03.09"]
[WhiteClock "0:01:12"]
[BlackClock "0:01:24"]

1. d4 {[%clk 0:03:00]}  Nf6 {[%clk 0:02:59]} 2. Nf3 {[%clk 0:03:00]}  g6 {[%clk 0:03:00]} 3. Bf4 {[%clk 0:02:58]}  Bg7 {[%clk 0:02:59]} 4. e3 {[%clk 0:02:58]}  O-O {[%clk 0:02:57]} 5. Be2 {[%clk 0:02:57]}  d6 {[%clk 0:02:57]} 6. O-O {[%clk 0:02:56]}  b6 {[%clk 0:02:58]} 7. h3 {[%clk 0:02:54]}  Bb7 {[%clk 0:02:58]} 8. a4 {[%clk 0:02:53]}  a6 {[%clk 0:02:58]} 9. a5 {[%clk 0:02:50]}  b5 {[%clk 0:02:57]} 10. Nbd2 {[%clk 0:02:49]}  Nbd7 {[%clk 0:02:57]} 11. c4 {[%clk 0:02:46]}  c6 {[%clk 0:02:51]} 12. Qc2 {[%clk 0:02:35]}  Re8 {[%clk 0:02:47]} 13. Bh2 {[%clk 0:02:33]}  e5 {[%clk 0:02:45]} 14. dxe5 {[%clk 0:02:31]}  Nxe5 {[%clk 0:02:40]} 15. Rfd1 {[%clk 0:02:26]}  Qe7 {[%clk 0:02:33]} 16. cxb5 {[%clk 0:01:27]}  cxb5 {[%clk 0:02:29]} 17. Nd4 {[%clk 0:01:26]}  Rac8 {[%clk 0:02:26]} 18. Qb1 {[%clk 0:01:25]}  h5 {[%clk 0:01:49]} 19. b4 {[%clk 0:01:23]}  Nd5 {[%clk 0:01:45]} 20. Qb2 {[%clk 0:01:20]}  Nc3 {[%clk 0:01:33]} 21. Re1 {[%clk 0:01:18]}  Nxe2+ {[%clk 0:01:25]} 22. Nxe2 {[%clk 0:01:12]}  Nf3+ {[%clk 0:01:24]} 0-1


[Site "https://www.chess.com"]